[Event "1000GM Saint Louis 2022"]
[Site "Saint Louis"]
[Date "2022.07.22"]
[Round "8.3"]
[White "Eswaran, Ashritha"]
[Black "Kretchetov, Alexandre"]
[Result "1-0"]
[ECO "B15"]
[WhiteElo "2394"]
[BlackElo "2219"]
[Annotator "TA"]
[PlyCount "61"]
[EventDate "2022.07.20"]
[EventType "tourn"]
[EventCountry "USA"]
[SourceTitle "playchess.com"]
[Source "ChessBase"]
[SourceQuality "1"]
[TimeControl "5400+30"]

{[%evp 13,61,27,33,12,8,7,15,14,25,0,0,0,0,0,0,0,0,12,22,12,10,0,49,41,50,44,56,47,47,58,87,96,106,110,304,297,287,285,288,169,596,596,596,596,596,594,582,581,706,579]} 1. e4 {[%emt 0:00:04]} c6 {[%emt 0:01:00]} 2. Nc3 {[%emt 0:00:19]} d5 {[%emt 0:00:05]} 3. Nf3 {[%emt 0:00:08]} g6 {[%emt 0:00:42]} 4. d4 {[%emt 0:00:21]} Bg7 {[%emt 0:00:04]} 5. h3 {[%emt 0:00:19]} dxe4 {[%emt 0:01:38]} 6. Nxe4 {[%emt 0:00:14]} Nf6 {[%emt 0:00:04] outshines the older 6...Nd7.} 7. Nxf6+ {[%emt 0:01:08]} exf6 {[%emt 0:00:06]} 8. c3 {[%emt 0:01:35] B15: Caro-Kann: 3 Nc3: 3...g6 and 3...dxe4 4 Nxe4 Nf6 5 Nxf6+ exf6.} O-O {[%emt 0:00:13]} 9. Be2 {[%emt 0:01:38] [#] Active counter play!} Nd7 $146 {[%emt 0:01:03]} ({Predecessor:} 9... a5 10. O-O a4 11. Be3 Re8 12. Qd2 Na6 13. Rfe1 Nc7 14. c4 Bf5 15. Red1 Be4 {½-½ (30) Dobosz,H (2409)-Berchtenbreiter,M (2467) Austria 2019}) 10. Be3 {[%emt 0:00:34] The position is equal.} Re8 {[%emt 0:01:35]} 11. Qc2 {[%emt 0:01:12]} Nb6 {[%emt 0:03:05]} 12. c4 {[%emt 0:03:29] Inhibits Nd5.} Bf5 {[%emt 0:06:14]} 13. Qc3 {[%emt 0:00:42]} Be4 {[%emt 0:02:38]} 14. O-O {[%emt 0:01:27]} f5 {[%emt 0:07:52][%cal Of5f4]} 15. Rad1 {[%emt 0:01:37]} Qc7 {[%emt 0:04:57]} 16. Qc1 {[%emt 0:02:20]} Rad8 {[%emt 0:18:39]} 17. b3 {[%emt 0:05:19]} (17. Ng5 {seems wilder.} Nd7 18. Nxe4 Rxe4 19. Bf3) 17... Qc8 {[%emt 0:03:09]} (17... Nd7 $11 {should be considered.}) 18. Rfe1 $14 {[%emt 0:07:09]} Bxf3 {[%emt 0:02:27]} 19. Bxf3 {[%emt 0:02:12]} f4 {[%emt 0:01:59]} 20. Bxf4 {[%emt 0:00:11] And now Rxe8+ would win.} Rxe1+ {[%emt 0:00:53]} 21. Rxe1 {[%emt 0:00:06][%cal Od4d5]} Bxd4 {[%emt 0:00:07]} 22. Re4 {[%emt 0:01:34] Hoping for c5.} Bf6 {[%emt 0:04:06]} 23. Qe3 {[%emt 0:02:32] Black must now prevent Bg4.} Qa8 $2 {[%emt 0:07:56] Loses the game.} (23... Nd7 $16) 24. g4 $18 {[%emt 0:01:45]} Nd7 {[%emt 0:00:52]} 25. g5 {[%emt 0:00:45]} Bg7 {[%emt 0:00:14]} 26. Bg4 {[%emt 0:02:01] A strong pair of Bishops.} (26. Bc7 $142 Rc8 {[#]} 27. Bg4 $1) 26... f5 $2 {[%emt 0:00:53]} (26... Bf8) 27. gxf6 {[%emt 0:15:28] White is clearly winning.} Nxf6 {[%emt 0:00:11]} 28. Re7 {[%emt 0:00:42][%cal Oe7g7] Intending Rxg7+! and mate.} Re8 {[%emt 0:01:19]} 29. Qe6+ {[%emt 0:02:18]} Kh8 {[%emt 0:00:09]} 30. Be5 {[%emt 0:00:12]} Rf8 {[%emt 0:04:38] [#]} 31. Rxg7 $1 {[%emt 0:00:26][%mdl 512] Weighted Error Value: White=0.09 (flawless) /Black=0.41} 1-0

[Event "1000GM Saint Louis 2022"]
[Site "Saint Louis"]
[Date "2022.07.22"]
[Round "8.5"]
[White "Mardov, Dimitar"]
[Black "Gauri, Shankar"]
[Result "*"]
[ECO "D78"]
[WhiteElo "2396"]
[BlackElo "2376"]
[Annotator "TA"]
[PlyCount "95"]
[EventDate "2022.07.20"]
[EventType "tourn"]
[EventCountry "USA"]
[SourceTitle "playchess.com"]
[Source "ChessBase"]
[SourceQuality "1"]
[TimeControl "5400+30"]

{[%evp 12,95,24,11,10,8,0,-22,-11,-35,-26,-24,-20,-23,-32,-29,-28,-34,-18,-21,-16,-3,0,-28,0,0,30,31,34,25,14,37,22,12,47,37,42,17,70,43,43,66,105,102,118,119,178,75,75,75,83,27,27,0,0,0,0,0,60,58,58,51,105,105,150,157,164,24,164,164,164,164,164,49,74,60,60,65,74,74,56,0,0,0,0,0]} 1. d4 {[%emt 0:00:02]} Nf6 {[%emt 0:01:32]} 2. Nf3 {[%emt 0:00:13]} g6 {[%emt 0:00:52]} 3. g3 {[%emt 0:02:07]} Bg7 {[%emt 0:00:20]} 4. Bg2 {[%emt 0:00:03]} d5 {[%emt 0:01:21]} 5. O-O {[%emt 0:00:31]} O-O {[%emt 0:00:29]} 6. c4 {[%emt 0:00:10][%cal Bc2c4,Bc4c5][%mdl 32]} c6 {[%emt 0:00:04] 6...c6 is better than 6...dxc4.} 7. Qa4 {[%emt 0:00:33]} Qb6 {[%emt 0:08:25] D78: Fianchetto Grünfeld: 6 0-0 c6.} 8. Nc3 {[%emt 0:02:58] [#]} Bf5 $146 {[%emt 0:02:50]} ({Predecessor:} 8... Qa6 9. Qxa6 Nxa6 10. cxd5 cxd5 11. Bf4 Rd8 12. Rfc1 Bd7 13. Ne5 Be8 14. Nd3 Rac8 15. e3 {1-0 (29) Fedoseev,V (2687)-Pershin,D (2391) Sochi 2021}) 9. c5 {[%emt 0:11:04]} Qa6 {[%emt 0:05:25]} 10. Qd1 {[%emt 0:05:48]} Nbd7 {[%emt 0:10:11]} 11. Nh4 {[%emt 0:04:43]} Be6 {[%emt 0:09:05]} 12. a4 {[%emt 0:11:05]} b6 {[%emt 0:02:00]} 13. cxb6 {[%emt 0:01:09]} axb6 {[%emt 0:01:29]} 14. Bf4 {[%emt 0:05:41]} h6 {[%emt 0:05:36] And now ...g5 would win.} 15. Nf3 {[%emt 0:01:19]} Rac8 {[%emt 0:02:14]} 16. Ne5 {[%emt 0:01:36]} Rfd8 {[%emt 0:05:07][%cal Bf8d8,Bd8d7,Bd7b7][%mdl 32]} 17. Nxd7 {[%emt 0:00:00]} Rxd7 {[%emt 0:05:13]} 18. a5 {[%emt 0:01:22]} Ne4 {[%emt 0:07:39]} 19. Na4 $1 {[%emt 0:02:15]} Qxa5 {[%emt 0:07:32] [#] ...Qb4 is the strong threat.} ({Resist} 19... bxa5 20. Bxe4 dxe4 21. Nc5 $16) 20. Nc5 $1 {[%emt 0:01:14][%mdl 64] Discovered Attack} Qxa1 {[%emt 0:00:45]} 21. Qxa1 {[%emt 0:00:30]} bxc5 {[%emt 0:00:01]} 22. dxc5 {[%emt 0:14:21]} Rb7 {[%emt 0:00:00]} 23. Bxe4 {[%emt 0:04:15]} dxe4 {[%emt 0:00:00]} 24. Qa4 {[%emt 0:01:04]} f5 {[%emt 0:00:59]} (24... g5 $11 25. Bc1 Bd5) 25. b4 $14 {[%emt 0:04:12]} g5 {[%emt 0:00:15]} 26. Bd2 {[%emt 0:00:48]} Rd7 {[%emt 0:05:04]} 27. Be3 {[%emt 0:01:38]} Bc4 {[%emt 0:00:41] Prevents b5.} 28. Qc2 {[%emt 0:00:38]} Bb5 {[%emt 0:01:18]} (28... Be6 $16) 29. Qa2+ {[%emt 0:02:13]} (29. h4 $18) 29... Rd5 $16 {[%emt 0:00:12]} 30. h4 {[%emt 0:02:37] Black must now prevent Rd1.} Bf6 {[%emt 0:01:37]} 31. Kg2 {[%emt 0:00:27]} (31. Rd1 $16 Rcd8 32. Rxd5 Rxd5 33. Kg2) 31... Kg7 $1 $11 {[%emt 0:01:45]} 32. hxg5 {[%emt 0:02:10]} hxg5 {[%emt 0:00:03]} 33. Rh1 {[%emt 0:00:14]} Rcd8 {[%emt 0:00:29]} 34. Qc2 {[%emt 0:01:02]} Rh8 {[%emt 0:03:15]} (34... g4 $11) 35. Rxh8 $14 {[%emt 0:00:50]} Kxh8 {[%emt 0:00:01]} 36. Bc1 $36 {[%emt 0:02:11][%mdl 2048] White fights for an advantage.} Kg7 {[%emt 0:00:46]} ({Black should try} 36... g4 $14) 37. Bb2 $16 {[%emt 0:00:45]} Bxb2 {[%emt 0:05:22]} 38. Qxb2+ {[%emt 0:00:06][%mdl 4096] Endgame KQ-KRB} Kf7 {[%emt 0:00:03]} 39. Qc2 {[%emt 0:01:54]} ({White should play} 39. g4 $18) 39... Rd4 {[%emt 0:00:23]} (39... g4 $1 $11 {and Black is okay.}) 40. g4 $18 {[%emt 0:00:44]} f4 {[%emt 0:00:30][%cal Ob5e2]} 41. Qb2 {[%emt 0:01:16]} Rd5 {[%emt 0:00:22][%cal Ob5e2] Threatens to win with ...Bxe2!} 42. Qh8 {[%emt 0:01:25]} (42. e3 $18) 42... Bxe2 $14 {[%emt 0:01:23] ( -> ...Bf3+)} 43. Qh7+ {[%emt 0:00:12]} Kf6 {[%emt 0:01:39]} 44. Qxe4 {[%emt 0:00:32]} Bd3 {[%emt 0:00:34] [#]} 45. Qe1 {[%emt 0:00:15]} e5 {[%emt 0:00:03]} 46. f3 {[%emt 0:01:41]} ({Better is} 46. b5 $14 Bxb5 47. Qb1) 46... Bb5 $11 {[%emt 0:01:02]} 47. Qe4 {[%emt 0:01:56] Hoping for Qf5+.} Bd3 {[%emt 0:00:01]} 48. Qe1 {[%emt 0:00:14] Weighted Error Value: White=0.20 (precise) /Black=0.17 (very precise)} *

[Event "1000GM Saint Louis 2022"]
[Site "Saint Louis"]
[Date "2022.07.23"]
[Round "9.1"]
[White "Gauri, Shankar"]
[Black "Woodward, Andy"]
[Result "0-1"]
[ECO "A16"]
[WhiteElo "2376"]
[BlackElo "2486"]
[Annotator "TA"]
[PlyCount "81"]
[EventDate "2022.07.20"]
[EventType "tourn"]
[EventCountry "USA"]
[SourceTitle "playchess.com"]
[Source "ChessBase"]
[SourceQuality "1"]
[TimeControl "5400+30"]

{[%evp 11,81,20,25,10,24,15,30,17,25,31,75,7,0,0,-1,-74,-69,-80,-71,-81,-73,-77,-73,-72,-77,-74,-76,-75,-73,-74,-67,-72,-79,-75,-63,-77,-18,-20,0,0,13,14,15,0,0,0,0,0,0,0,0,-43,-44,-93,-91,-892,-720,-698,-695,-1068,-810,-792,-768,-750,-429,-29979,-29980,-29980,-29980,-29980,-29981,-29993]} 1. c4 {[%emt 0:08:05]} Nf6 {[%emt 0:00:11]} 2. Nf3 {[%emt 0:00:37]} g6 {[%emt 0:00:07]} 3. g3 {[%emt 0:00:52]} Bg7 {[%emt 0:00:05]} 4. Bg2 {[%emt 0:00:05]} O-O {[%emt 0:00:08]} 5. Nc3 {[%emt 0:04:52]} d5 {[%emt 0:03:15]} 6. cxd5 {[%emt 0:01:12]} Nxd5 {[%emt 0:00:30]} 7. h4 {[%emt 0:00:12] A16: English Opening: 1...Nf6 with ...d5.} c5 {[%emt 0:04:26]} 8. h5 {[%emt 0:02:23]} Nc6 {[%emt 0:01:00]} 9. hxg6 {[%emt 0:07:45] White has an edge.} hxg6 {[%emt 0:00:13]} ({Don't play} 9... fxg6 10. Ng5 Rf5 11. Nxh7 $16) 10. Ng5 {[%emt 0:17:00]} e6 {[%emt 0:08:05]} 11. Nge4 {[%emt 0:03:22] [#]} ({Better is} 11. d3 $16) 11... c4 $146 {[%emt 0:02:45]} ({Predecessor:} 11... b6 12. d3 Bb7 13. Bg5 f6 14. Bd2 Nce7 15. Qb3 Rb8 16. O-O-O Qd7 17. g4 g5 18. Nxd5 Bxd5 {0-1 (27) Halkias,S (2571)-Savchenko,B (2566) Riadh 2017}) 12. d3 {[%emt 0:05:27]} cxd3 {[%emt 0:03:52]} 13. Qxd3 {[%emt 0:03:11]} (13. Bh6 $11) 13... f5 $17 {[%emt 0:07:58]} 14. Nxd5 {[%emt 0:03:02]} fxe4 {[%emt 0:01:17]} 15. Bxe4 {[%emt 0:06:44] Nf4 is the strong threat.} Ne5 {[%emt 0:00:33]} 16. Qb3 {[%emt 0:01:44] Threatens to win with Nf4.} exd5 {[%emt 0:00:13]} 17. Bxd5+ {[%emt 0:00:01]} Nf7 {[%emt 0:00:10]} 18. Bd2 {[%emt 0:06:29] [#]} a5 {[%emt 0:06:53] Prevents Bb4.} 19. Rd1 {[%emt 0:00:32][%cal Od2b4]} Qe7 {[%emt 0:02:41] Prevents Bb4.} 20. Rh4 {[%emt 0:10:42]} Bf5 {[%emt 0:05:29] Against Re4} 21. Qxb7 {[%emt 0:02:43]} ({Of course not} 21. e4 Rfe8 22. Qxb7 Qxb7 23. Bxb7 Rab8 $17) 21... Qxb7 {[%emt 0:04:28] Really sharp!} 22. Bxb7 {[%emt 0:00:02]} Rab8 {[%emt 0:05:55]} (22... Bxb2 23. Bxa8 Rxa8 24. Bc1 Bc3+ 25. Bd2 $11) 23. Bd5 {[%emt 0:00:16]} Bf6 {[%emt 0:00:12]} (23... Rxb2 $17 24. Rc4 Re8) 24. Rc4 $11 {[%emt 0:01:02]} Rxb2 {[%emt 0:01:26]} 25. Rc6 {[%emt 0:05:11]} Bh8 {[%emt 0:10:34]} 26. g4 {[%emt 0:00:35][%mdl 1024] White has compensation.} Bb1 {[%emt 0:04:47]} 27. Rdc1 {[%emt 0:05:17]} Kh7 {[%emt 0:03:07]} ({But not} 27... Bxa2 28. Rxg6+ Kh7 29. Be4 Rxd2 30. Kxd2 Rd8+ 31. Rd6+ Kg8 32. Rxd8+ Nxd8 33. Rc8 $18) 28. f4 {[%emt 0:02:49]} Bg7 {[%emt 0:06:14]} 29. a4 {[%emt 0:01:26]} g5 {[%emt 0:04:16]} 30. Rc7 {[%emt 0:00:31]} Ba2 {[%emt 0:00:25]} (30... Rd8 $2 31. Rxf7 Rxd2 32. Kxd2 $18) 31. Be4+ {[%emt 0:01:07]} (31. Rxf7 $5 Rxf7 32. Bxf7 Bxf7 33. Rc7 $11) 31... Kg8 {[%emt 0:00:32]} 32. fxg5 {[%emt 0:00:41] [#]} (32. R1c6 $15 {was preferrable.}) 32... Be5 $1 $17 {[%emt 0:00:10]} 33. g6 $2 {[%emt 0:00:31][%mdl 8192] [#] Loses the game.} (33. Bc3 $17) 33... Ng5 $1 {[%emt 0:00:58][%mdl 512] ( -> ...Bg3+)} 34. Bf5 {[%emt 0:00:30]} Bg3+ {[%emt 0:00:24]} 35. Kd1 {[%emt 0:00:30]} Bb3+ {[%emt 0:00:15]} 36. R7c2 {[%emt 0:00:20] [#]} Ne4 $1 {[%emt 0:00:56][%mdl 512] White must now prevent ...Nf2+.} 37. e3 {[%emt 0:00:40]} Rxc2 {[%emt 0:04:03][%csl Ge4][%cal Rc2d2]} 38. Be6+ {[%emt 0:00:31]} (38. Rxc2 $19 Nxd2 39. Kxd2 Bxc2 40. Bxc2) 38... Bxe6 {[%emt 0:00:29][%csl Ge4][%cal Rc2d2] Black mates.} 39. Kxc2 {[%emt 0:00:03]} Rc8+ {[%emt 0:00:12]} 40. Kd3 {[%emt 0:00:10]} Nxd2 {[%emt 0:00:04]} 41. Kd4 {[%emt 0:00:24] Weighted Error Value: White=0.53/Black=0.25 (precise)} 0-1

[Event "1000GM Saint Louis 2022"]
[Site "Saint Louis"]
[Date "2022.07.23"]
[Round "9.4"]
[White "Chandra, Akshat"]
[Black "Eswaran, Ashritha"]
[Result "1/2-1/2"]
[ECO "E43"]
[WhiteElo "2485"]
[BlackElo "2394"]
[Annotator "TA"]
[PlyCount "51"]
[EventDate "2022.07.20"]
[EventType "tourn"]
[EventCountry "USA"]
[SourceTitle "playchess.com"]
[Source "ChessBase"]
[SourceQuality "1"]
[TimeControl "5400+30"]

{[%evp 17,51,30,42,47,37,0,3,-27,-31,-29,42,41,36,29,44,42,55,50,45,19,20,20,20,20,20,20,24,4,18,-10,-7,-68,-70,-63,0,0]} 1. d4 {[%emt 0:08:56]} Nf6 {[%emt 0:00:23]} 2. c4 {[%emt 0:01:14]} e6 {[%emt 0:00:22]} 3. Nc3 {[%emt 0:00:08]} Bb4 {[%emt 0:00:07]} 4. e3 {[%emt 0:00:05]} b6 {[%emt 0:00:14]} 5. Nf3 {[%emt 0:03:29]} Bb7 {[%emt 0:00:31]} 6. Bd3 {[%emt 0:01:33]} Bxc3+ {[%emt 0:00:59]} 7. bxc3 {[%emt 0:00:05]} d6 {[%emt 0:00:11]} 8. O-O {[%emt 0:01:39]} O-O {[%emt 0:00:38]} 9. Nd2 {[%emt 0:03:28]} c5 {[%emt 0:01:16]} 10. e4 {[%emt 0:10:58] E43: Nimzo-Indian: Rubinstein: 4...b6.} Nc6 {[%emt 0:00:51]} 11. Nb3 {[%emt 0:06:29]} a5 {[%emt 0:02:06] [#]} 12. d5 $146 {[%emt 0:15:32]} ({Predecessor:} 12. Be3 cxd4 13. cxd4 Nb4 14. d5 exd5 15. exd5 b5 16. cxb5 Nfxd5 17. Qd2 Nxe3 18. Qxe3 Re8 {½-½ (74) Moiseenko,A (2620)-Svane,F (2438) Tornelo INT 2021}) 12... Ne5 {[%emt 0:01:38] [#] Threatens to win with ...a4.} 13. Bf4 {[%emt 0:03:59]} Re8 {[%emt 0:07:25]} (13... Nxd3 $11 14. Qxd3 Nh5) 14. Bxe5 $14 {[%emt 0:01:23]} dxe5 {[%emt 0:04:05]} 15. Qe2 {[%emt 0:00:26]} Ba6 {[%emt 0:02:52]} 16. Nd2 {[%emt 0:00:12][%cal Bb3d2,Bd2f1,Bf1e3,Be3f5,Bf5h6][%mdl 32]} Qd7 {[%emt 0:02:24]} 17. Rfb1 {[%emt 0:03:53]} Rab8 {[%emt 0:01:18]} 18. Nf1 {[%emt 0:02:52]} exd5 {[%emt 0:05:25]} 19. cxd5 {[%emt 0:00:07]} b5 {[%emt 0:02:13]} 20. Ne3 {[%emt 0:05:10]} c4 {[%emt 0:01:25]} 21. Bc2 {[%emt 0:00:02]} Qc7 {[%emt 0:02:21]} 22. Qd2 {[%emt 0:03:19]} Rb6 {[%emt 0:03:53][%cal Ob5b4]} 23. Nf5 {[%emt 0:11:03]} g6 {[%emt 0:00:07]} 24. d6 {[%emt 0:00:01]} ({White should try} 24. Nh6+ $11 Kg7 25. a3) 24... Qd8 $1 $15 {[%emt 0:00:01]} 25. Qg5 {[%emt 0:00:16]} Kh8 {[%emt 0:00:03]} ({Black should play} 25... Bc8 $1 $15 26. a4 Bxf5 27. exf5 Nd5) 26. Nh6 {[%emt 0:00:04] Weighted Error Value: White=0.17 (very precise) /Black=0.14 (very precise)} 1/2-1/2

[Event "1000GM Saint Louis 2022"]
[Site "Saint Louis"]
[Date "2022.07.23"]
[Round "9.5"]
[White "Yu, Jennifer"]
[Black "Abrahamyan, Tatev"]
[Result "1/2-1/2"]
[ECO "D78"]
[WhiteElo "2268"]
[BlackElo "2291"]
[Annotator "TA"]
[PlyCount "116"]
[EventDate "2022.07.20"]
[EventType "tourn"]
[EventCountry "USA"]
[SourceTitle "playchess.com"]
[Source "ChessBase"]
[SourceQuality "1"]
[TimeControl "5400+30"]

{[%evp 12,116,33,0,18,0,0,-16,-12,-35,-15,-31,-20,-20,-24,-26,-18,-28,-17,-31,-16,-20,-12,-28,0,-1,24,26,16,13,18,31,21,3,37,47,42,10,38,29,43,28,102,100,115,121,152,81,88,85,132,32,36,0,0,0,0,0,74,74,74,74,106,113,134,145,174,25,168,168,168,168,174,66,66,66,66,66,52,66,96,0,0,0,0,0,278,0,50,0,287,0,76,0,80,0,80,0,0,0,281,281,277,241,242,0,0]} 1. d4 {[%emt 0:00:02]} Nf6 {[%emt 0:01:32]} 2. Nf3 {[%emt 0:00:13]} g6 {[%emt 0:00:52]} 3. g3 {[%emt 0:02:07]} Bg7 {[%emt 0:00:20]} 4. Bg2 {[%emt 0:00:03]} d5 {[%emt 0:01:21]} 5. O-O {[%emt 0:00:31]} O-O {[%emt 0:00:29]} 6. c4 {[%emt 0:00:10][%cal Bc2c4,Bc4c5][%mdl 32]} c6 {[%emt 0:00:04] The main line 6...c6 scores better than 6...dxc4.} 7. Qa4 {[%emt 0:00:33]} Qb6 {[%emt 0:08:25] D78: Fianchetto Grünfeld: 6 0-0 c6.} 8. Nc3 {[%emt 0:02:58] [#]} Bf5 $146 {[%emt 0:02:50]} ({Predecessor:} 8... Qa6 9. Qxa6 Nxa6 10. cxd5 cxd5 11. Bf4 Rd8 12. Rfc1 Bd7 13. Ne5 Be8 14. Nd3 Rac8 15. e3 {1-0 (29) Fedoseev,V (2687)-Pershin,D (2391) Sochi 2021}) 9. c5 {[%emt 0:11:04]} Qa6 {[%emt 0:05:25]} 10. Qd1 {[%emt 0:05:48]} Nbd7 {[%emt 0:10:11]} 11. Nh4 {[%emt 0:04:43]} Be6 {[%emt 0:09:05]} 12. a4 {[%emt 0:11:05]} b6 {[%emt 0:02:00]} 13. cxb6 {[%emt 0:01:09]} axb6 {[%emt 0:01:29]} 14. Bf4 {[%emt 0:05:41]} h6 {[%emt 0:05:36] aiming for ...g5.} 15. Nf3 {[%emt 0:01:19]} Rac8 {[%emt 0:03:18]} 16. Ne5 {[%emt 0:07:15]} Rfd8 {[%emt 0:03:41]} 17. Nxd7 {[%emt 0:02:18]} Rxd7 {[%emt 0:03:05]} 18. a5 {[%emt 0:01:22]} Ne4 {[%emt 0:07:39]} 19. Na4 $1 {[%emt 0:02:15]} Qxa5 {[%emt 0:07:32] [#]} ({Don't take} 19... bxa5 20. Bxe4 dxe4 21. Nc5 $16) 20. Nc5 $1 {[%emt 0:01:14][%mdl 64] Discovered Attack} Qxa1 {[%emt 0:00:45]} 21. Qxa1 {[%emt 0:00:30]} bxc5 {[%emt 0:09:34]} 22. dxc5 {[%emt 0:14:21]} Rb7 {[%emt 0:00:00]} 23. Bxe4 {[%emt 0:04:15]} dxe4 {[%emt 0:00:00]} 24. Qa4 {[%emt 0:01:04]} f5 {[%emt 0:00:59]} (24... g5 $5 {[%cal Rg5f4]} 25. Bc1 Bd5 $11) 25. b4 {[%emt 0:04:12]} g5 {[%emt 0:00:15]} 26. Bd2 {[%emt 0:00:48][%cal Og3g4]} Rd7 {[%emt 0:05:04]} (26... Rbb8 $1 $11) 27. Be3 $16 {[%emt 0:01:38] Threatens to win with b5.} Bc4 {[%emt 0:00:41] Prevents b5.} 28. Qc2 {[%emt 0:00:38]} Bb5 {[%emt 0:01:18]} 29. Qa2+ {[%emt 0:02:13]} (29. h4 $142) 29... Rd5 {[%emt 0:00:12]} 30. h4 {[%emt 0:02:37]} Bf6 {[%emt 0:01:37]} 31. Kg2 {[%emt 0:00:27]} (31. Rd1 $1 $16 {[%cal Rd1d5]} Rcd8 32. Rxd5 Rxd5 33. Kg2) 31... Kg7 $14 {[%emt 0:01:44]} 32. hxg5 {[%emt 0:02:10]} hxg5 {[%emt 0:00:03]} 33. Rh1 {[%emt 0:00:14]} Rcd8 {[%emt 0:00:29]} 34. Qc2 {[%emt 0:01:02]} Rh8 {[%emt 0:03:15]} (34... Ra8 $11) 35. Rxh8 $16 {[%emt 0:00:50]} Kxh8 {[%emt 0:00:01]} 36. Bc1 $36 {[%emt 0:02:11][%mdl 2048] Keeping Black busy.} Kg7 {[%emt 0:00:46]} 37. Bb2 {[%emt 0:00:45] Prevents Rd4.} Bxb2 {[%emt 0:05:22]} 38. Qxb2+ {[%emt 0:00:06][%mdl 4096] Endgame KQ-KRB} Kf7 {[%emt 0:00:03]} 39. Qc2 {[%emt 0:01:54]} ({Better is} 39. g4 $18) 39... Rd4 {[%emt 0:00:23]} (39... g4 $1 $11) 40. g4 $18 {[%emt 0:00:44]} f4 {[%emt 0:00:30][%cal Ob5e2]} 41. Qb2 {[%emt 0:01:16]} Rd5 {[%emt 0:00:22][%cal Ob5e2]} 42. Qh8 {[%emt 0:01:25]} (42. Kh2 $18) 42... Bxe2 $14 {[%emt 0:01:23] ( -> ...Bf3+)} 43. Qh7+ {[%emt 0:00:12]} Kf6 {[%emt 0:01:39]} 44. Qxe4 {[%emt 0:00:32]} Bd3 {[%emt 0:00:34]} 45. Qe1 {[%emt 0:00:15]} e5 {[%emt 0:00:03]} 46. f3 {[%emt 0:01:41]} (46. Qc1 $16) 46... Bb5 $1 $11 {[%emt 0:01:02]} 47. Qe4 {[%emt 0:01:56] Qf5+ is the strong threat.} Bd3 {[%emt 0:00:01]} 48. Qe1 {[%emt 0:00:14] And now Qa1 would win.} Rd4 $2 {[%emt 0:00:16][%mdl 8192]} (48... Bb5 $11) 49. Qc3 $2 {[%emt 0:01:01]} (49. Qa1 $18) 49... Bc4 {[%emt 0:00:17]} (49... Bb5 $11) 50. Qc2 {[%emt 0:00:33]} ({White should play} 50. Qa1 $1 $14 Rd2+ 51. Kg1) 50... Bd3 $2 {[%emt 0:00:55][%mdl 8192]} (50... e4 $1 $11) 51. Qc3 $2 {[%emt 0:00:18]} (51. Qa2 $18) 51... Rd8 {[%emt 0:00:41]} (51... Bb5 $11) 52. Qa1 {[%emt 0:00:54]} (52. b5 $1 $16 {[%cal Rb5c6]} Bxb5 53. Qa5) 52... Bc4 {[%emt 0:00:23]} (52... Bb5 $1 $11 {remains equal.}) 53. Qc3 {[%emt 0:00:18]} (53. b5 $1 $16 {[%cal Rb5b6]} Bxb5 54. Qa5) 53... Bd3 {[%emt 0:00:46] [#]} (53... Rd4 $11 {keeps the balance.}) 54. Qa1 {[%emt 0:00:09]} (54. b5 $1 $16 {[%cal Rb5c6]} Bxb5 55. Qa5) 54... Bb5 {[%emt 0:00:39]} 55. Qa2 {[%emt 0:01:02]} Rd5 $2 {[%emt 0:00:29][%mdl 8192] [#]} (55... Ke7 $1 $11 {and Black is okay.}) 56. Qa8 $1 $18 {[%emt 0:00:47] Hoping for Qf8+.} Rd2+ {[%emt 0:00:34]} 57. Kg1 {[%emt 0:00:10]} Rd1+ {[%emt 0:00:16]} 58. Kg2 $2 {[%emt 0:00:26]} ({White must play} 58. Kf2 $18 Ke7 59. Qb8 Rd2+ 60. Ke1 Re2+ 61. Kd1) 58... Rd2+ {[%emt 0:00:16] Weighted Error Value: White=0.36/Black=0.47} 1/2-1/2